[Event "*** Titled Tuesday Blitz"]
[Site "Chess.com"]
[Date "2021.03.16"]
[Round "5"]
[White "tptagain"]
[Black "SilviusTiberius"]
[Result "1-0"]
[WhiteElo "2864"]
[BlackElo "2543"]
[TimeControl "180+1"]
[EndTime "10:54:42 PDT"]
[Termination "tptagain won by checkmate"]

1. e4 {[%clk 0:02:58.9]} 1... e5 {[%clk 0:02:59.9]} 2. d4 {[%clk 0:02:54.4]}
2... exd4 {[%clk 0:02:59.4]} 3. Qxd4 {[%clk 0:02:55.3]} 3... Nc6 {[%clk
0:02:56.7]} 4. Qe3 {[%clk 0:02:55.8]} 4... Nf6 {[%clk 0:02:54.1]} 5. Bd2 {[%clk
0:02:56.3]} 5... d6 {[%clk 0:02:31.1]} 6. Nc3 {[%clk 0:02:54.2]} 6... g6 {[%clk
0:02:15.1]} 7. O-O-O {[%clk 0:02:48.2]} 7... Bg7 {[%clk 0:02:15.4]} 8. f4 {[%clk
0:02:44]} 8... O-O {[%clk 0:02:15.3]} 9. Nf3 {[%clk 0:02:43.6]} 9... Re8 {[%clk
0:02:14.1]} 10. Bd3 {[%clk 0:02:42.6]} 10... Nb4 {[%clk 0:01:50.6]} 11. Rhe1
{[%clk 0:02:28.4]} 11... Nxd3+ {[%clk 0:01:34.6]} 12. Qxd3 {[%clk 0:02:28.4]}
12... Bg4 {[%clk 0:01:33.2]} 13. h3 {[%clk 0:02:15.9]} 13... Bxf3 {[%clk
0:01:32]} 14. Qxf3 {[%clk 0:02:16.8]} 14... Nd7 {[%clk 0:01:31.7]} 15. Nd5
{[%clk 0:02:13.9]} 15... c6 {[%clk 0:01:30.5]} 16. Nc3 {[%clk 0:02:10.6]} 16...
Nc5 {[%clk 0:01:29.5]} 17. Kb1 {[%clk 0:02:05.6]} 17... b5 {[%clk 0:01:26.1]}
18. e5 {[%clk 0:02:05.7]} 18... d5 {[%clk 0:01:24.5]} 19. Be3 {[%clk 0:02:03.7]}
19... Nd7 {[%clk 0:01:21.5]} 20. Ne2 {[%clk 0:01:52.6]} 20... Nb6 {[%clk
0:01:10.7]} 21. Bc1 {[%clk 0:01:49.2]} 21... a5 {[%clk 0:01:02.4]} 22. Nd4
{[%clk 0:01:45.8]} 22... Qc8 {[%clk 0:01:02.4]} 23. g4 {[%clk 0:01:37.1]} 23...
Ra7 {[%clk 0:00:57.9]} 24. Qf2 {[%clk 0:01:33.2]} 24... Rb7 {[%clk 0:00:49.4]}
25. Nf3 {[%clk 0:01:23.9]} 25... Nc4 {[%clk 0:00:47.8]} 26. b3 {[%clk
0:01:11.4]} 26... Qb8 {[%clk 0:00:44.4]} 27. Qh4 {[%clk 0:01:09.2]} 27... a4
{[%clk 0:00:40.2]} 28. Qf2 {[%clk 0:00:52.3]} 28... Qc7 {[%clk 0:00:30.6]} 29.
bxc4 {[%clk 0:00:44.1]} 29... bxc4+ {[%clk 0:00:29.7]} 30. Ka1 {[%clk
0:00:44.8]} 30... Qa5 {[%clk 0:00:26.1]} 31. Qe3 {[%clk 0:00:20.9]} 31... Bf8
{[%clk 0:00:21.1]} 32. Ba3 {[%clk 0:00:20.7]} 32... c3 {[%clk 0:00:14.2]} 33.
Bxf8 {[%clk 0:00:18.7]} 33... Rxf8 {[%clk 0:00:14.7]} 34. Rb1 {[%clk 0:00:19]}
34... Rfb8 {[%clk 0:00:13.8]} 35. Nd4 {[%clk 0:00:15.5]} 35... Rb2 {[%clk
0:00:12.1]} 36. Rxb2 {[%clk 0:00:14.2]} 36... Rxb2 {[%clk 0:00:11.1]} 37. e6
{[%clk 0:00:13.4]} 37... Qb4 {[%clk 0:00:05.6]} 38. exf7+ {[%clk 0:00:13.6]}
38... Kxf7 {[%clk 0:00:05.6]} 39. Qe8+ {[%clk 0:00:12.9]} 39... Kg7 {[%clk
0:00:05.8]} 40. Re7+ {[%clk 0:00:09.8]} 40... Kh6 {[%clk 0:00:06.2]} 41. Qf8#
{[%clk 0:00:10.3]} 1-0

[Event "*** Titled Tuesday Blitz"]
[Site "Chess.com"]
[Date "2021.03.16"]
[Round "5"]
[White "Frolyanov_D"]
[Black "Agnes66678"]
[Result "0-1"]
[WhiteElo "2672"]
[BlackElo "2451"]
[TimeControl "180+1"]
[EndTime "10:54:46 PDT"]
[Termination "Agnes66678 won on time"]

1. e4 {[%clk 0:03:00.9]} 1... d6 {[%clk 0:02:59.5]} 2. d4 {[%clk 0:02:56.7]}
2... Nf6 {[%clk 0:02:58.8]} 3. Nc3 {[%clk 0:02:55.2]} 3... e5 {[%clk 0:02:58.7]}
4. Nf3 {[%clk 0:02:53.9]} 4... Nbd7 {[%clk 0:02:58.2]} 5. Bc4 {[%clk 0:02:52.7]}
5... Be7 {[%clk 0:02:58.1]} 6. O-O {[%clk 0:02:52.1]} 6... O-O {[%clk
0:02:58.2]} 7. a4 {[%clk 0:02:49.9]} 7... c6 {[%clk 0:02:57.1]} 8. h3 {[%clk
0:02:48.2]} 8... a5 {[%clk 0:02:56.6]} 9. Ba2 {[%clk 0:02:45.7]} 9... Qc7 {[%clk
0:02:47.1]} 10. Kh1 {[%clk 0:02:43.8]} 10... h6 {[%clk 0:02:46.1]} 11. Be3
{[%clk 0:02:41.9]} 11... Re8 {[%clk 0:02:44.6]} 12. Qd2 {[%clk 0:02:38.7]} 12...
exd4 {[%clk 0:02:40.9]} 13. Nxd4 {[%clk 0:02:36.6]} 13... Bf8 {[%clk 0:02:39.5]}
14. f3 {[%clk 0:02:12.9]} 14... Nc5 {[%clk 0:02:33]} 15. Rae1 {[%clk 0:02:10.4]}
15... Bd7 {[%clk 0:02:24.7]} 16. g4 {[%clk 0:02:08.8]} 16... d5 {[%clk
0:01:56.3]} 17. exd5 {[%clk 0:02:04.5]} 17... cxd5 {[%clk 0:01:56]} 18. Rg1
{[%clk 0:01:41.3]} 18... Bc6 {[%clk 0:01:25.7]} 19. g5 {[%clk 0:01:03.5]} 19...
hxg5 {[%clk 0:01:24.7]} 20. Bxg5 {[%clk 0:01:02]} 20... Rxe1 {[%clk 0:01:16.2]}
21. Qxe1 {[%clk 0:01:02.9]} 21... Re8 {[%clk 0:01:07.7]} 22. Qh4 {[%clk
0:00:59]} 22... Nh7 {[%clk 0:01:06.5]} 23. Nxd5 {[%clk 0:00:53.3]} 23... Qe5
{[%clk 0:01:00.4]} 24. Nxc6 {[%clk 0:00:41.8]} 24... bxc6 {[%clk 0:00:56.1]} 25.
Nf6+ {[%clk 0:00:40.8]} 25... Nxf6 {[%clk 0:00:51.5]} 26. Bxf6 {[%clk
0:00:41.7]} 26... Qf5 {[%clk 0:00:51.9]} 27. Rg2 {[%clk 0:00:09.8]} 27... Ne6
{[%clk 0:00:44.2]} 28. Bc4 {[%clk 0:00:08.4]} 28... Nf4 {[%clk 0:00:40.9]} 29.
Bd3 {[%clk 0:00:06.3]} 29... Nxg2 {[%clk 0:00:37.5]} 30. Bxf5 {[%clk 0:00:04.8]}
30... Nxh4 {[%clk 0:00:36.8]} 31. Bxh4 {[%clk 0:00:05.7]} 31... Re2 {[%clk
0:00:36.3]} 32. Be4 {[%clk 0:00:05.5]} 32... Bc5 {[%clk 0:00:31.7]} 33. Bd8
{[%clk 0:00:05.1]} 33... Bb4 {[%clk 0:00:29.3]} 34. c3 {[%clk 0:00:04.8]} 34...
Bd6 {[%clk 0:00:25.5]} 35. Bxa5 {[%clk 0:00:04.5]} 35... Rxb2 {[%clk 0:00:25.4]}
36. Bxc6 {[%clk 0:00:04.1]} 36... Rh2+ {[%clk 0:00:24.7]} 37. Kg1 {[%clk
0:00:03.4]} 37... Ra2 {[%clk 0:00:24.9]} 38. Bb6 {[%clk 0:00:03.1]} 38... Ra3
{[%clk 0:00:23.6]} 39. a5 {[%clk 0:00:03.1]} 39... Rxc3 {[%clk 0:00:19.8]} 40.
Be4 {[%clk 0:00:03.2]} 40... Rc1+ {[%clk 0:00:19.4]} 41. Kg2 {[%clk 0:00:02.7]}
41... Ra1 {[%clk 0:00:20.3]} 42. h4 {[%clk 0:00:01.8]} 42... Ra2+ {[%clk
0:00:20.6]} 43. Kf1 {[%clk 0:00:01.2]} 43... g6 {[%clk 0:00:21.5]} 0-1

[Event "*** Titled Tuesday Blitz"]
[Site "Chess.com"]
[Date "2021.03.16"]
[Round "5"]
[White "slavenok"]
[Black "zmeeed67"]
[Result "1-0"]
[WhiteElo "2729"]
[BlackElo "2429"]
[TimeControl "180+1"]
[EndTime "10:54:52 PDT"]
[Termination "slavenok won by checkmate"]

1. e4 {[%clk 0:03:00.6]} 1... c5 {[%clk 0:03:00]} 2. d4 {[%clk 0:02:58.5]} 2...
cxd4 {[%clk 0:03:00]} 3. Nf3 {[%clk 0:02:57.9]} 3... e6 {[%clk 0:02:52.3]} 4.
Bc4 {[%clk 0:02:58]} 4... Nf6 {[%clk 0:02:23.8]} 5. Qe2 {[%clk 0:02:57.4]} 5...
Nc6 {[%clk 0:02:18.7]} 6. O-O {[%clk 0:02:56.3]} 6... d5 {[%clk 0:02:15.8]} 7.
exd5 {[%clk 0:02:54]} 7... Nxd5 {[%clk 0:02:16.7]} 8. Rd1 {[%clk 0:02:54.4]}
8... Bc5 {[%clk 0:02:11.5]} 9. c3 {[%clk 0:02:54]} 9... O-O {[%clk 0:02:08]} 10.
cxd4 {[%clk 0:02:53.7]} 10... Be7 {[%clk 0:02:05.9]} 11. Nc3 {[%clk 0:02:53.7]}
11... Nxc3 {[%clk 0:02:04.3]} 12. bxc3 {[%clk 0:02:53.2]} 12... Bf6 {[%clk
0:01:54.6]} 13. Bf4 {[%clk 0:02:48.6]} 13... Re8 {[%clk 0:01:52.3]} 14. Bd3
{[%clk 0:02:45]} 14... Bd7 {[%clk 0:01:45.4]} 15. Rab1 {[%clk 0:02:43]} 15... b6
{[%clk 0:01:39.6]} 16. Qe4 {[%clk 0:02:40.4]} 16... g6 {[%clk 0:01:39.6]} 17.
Ne5 {[%clk 0:02:35.6]} 17... Rc8 {[%clk 0:01:30.9]} 18. Ba6 {[%clk 0:02:29.6]}
18... Ne7 {[%clk 0:00:23]} 19. Bxc8 {[%clk 0:02:25.9]} 19... Bxc8 {[%clk
0:00:23]} 20. Ng4 {[%clk 0:02:21.2]} 20... Bg7 {[%clk 0:00:23]} 21. Nh6+ {[%clk
0:02:20.1]} 21... Kf8 {[%clk 0:00:23.3]} 22. Be3 {[%clk 0:02:14.8]} 22... Nd5
{[%clk 0:00:21]} 23. Qf3 {[%clk 0:01:36]} 23... f5 {[%clk 0:00:20.4]} 24. Bd2
{[%clk 0:01:09.3]} 24... Qf6 {[%clk 0:00:15.8]} 25. c4 {[%clk 0:01:06.5]} 25...
Ne7 {[%clk 0:00:16]} 26. d5 {[%clk 0:01:04.6]} 26... exd5 {[%clk 0:00:12.2]} 27.
cxd5 {[%clk 0:01:05.5]} 27... Bb7 {[%clk 0:00:12.4]} 28. Qa3 {[%clk 0:00:59]}
28... Bxd5 {[%clk 0:00:10.1]} 29. Re1 {[%clk 0:00:55.9]} 29... Be4 {[%clk
0:00:09.5]} 30. Rbd1 {[%clk 0:00:50.6]} 30... g5 {[%clk 0:00:09.9]} 31. Bb4
{[%clk 0:00:42]} 31... Bxh6 {[%clk 0:00:06.2]} 32. f3 {[%clk 0:00:40.5]} 32...
Bc6 {[%clk 0:00:03.9]} 33. Rd6 {[%clk 0:00:37.1]} 33... Qg7 {[%clk 0:00:01.9]}
34. Rxc6 {[%clk 0:00:37.2]} 34... Qd4+ {[%clk 0:00:02.3]} 35. Kh1 {[%clk
0:00:36.5]} 35... Qf2 {[%clk 0:00:02.4]} 36. Rxh6 {[%clk 0:00:31.6]} 36... Kg7
{[%clk 0:00:02.7]} 37. Rhe6 {[%clk 0:00:31]} 37... Nd5 {[%clk 0:00:02.8]} 38.
Rxe8 {[%clk 0:00:29.3]} 38... Nf4 {[%clk 0:00:03.4]} 39. Qc3+ {[%clk 0:00:25.6]}
39... Kh6 {[%clk 0:00:03.2]} 40. Rg1 {[%clk 0:00:21.3]} 40... Ne2 {[%clk
0:00:02.8]} 41. Rxe2 {[%clk 0:00:20.8]} 41... Qxe2 {[%clk 0:00:03.7]} 42. Bf8+
{[%clk 0:00:20.6]} 42... Kh5 {[%clk 0:00:04.3]} 43. Qf6 {[%clk 0:00:20]} 43...
f4 {[%clk 0:00:02.1]} 44. Qf7+ {[%clk 0:00:19.7]} 44... Kh4 {[%clk 0:00:02.2]}
45. Qxh7# {[%clk 0:00:19]} 1-0

[Event "*** Titled Tuesday Blitz"]
[Site "Chess.com"]
[Date "2021.03.16"]
[Round "5"]
[White "ChessLover0108"]
[Black "JimmmyZhang"]
[Result "0-1"]
[WhiteElo "2767"]
[BlackElo "2538"]
[TimeControl "180+1"]
[EndTime "10:54:53 PDT"]
[Termination "JimmmyZhang won by resignation"]

1. Nf3 {[%clk 0:03:00.9]} 1... c6 {[%clk 0:02:57.6]} 2. c4 {[%clk 0:02:59.5]}
2... d5 {[%clk 0:02:57.2]} 3. e3 {[%clk 0:03:00.4]} 3... Nf6 {[%clk 0:02:55.9]}
4. b3 {[%clk 0:03:01.1]} 4... g6 {[%clk 0:02:53.3]} 5. Bb2 {[%clk 0:03:01.7]}
5... Bg7 {[%clk 0:02:53.8]} 6. Be2 {[%clk 0:03:01.9]} 6... O-O {[%clk
0:02:51.3]} 7. O-O {[%clk 0:03:01.9]} 7... a5 {[%clk 0:02:51.9]} 8. Nc3 {[%clk
0:03:01.5]} 8... Nbd7 {[%clk 0:02:27.8]} 9. d4 {[%clk 0:02:59.1]} 9... e6 {[%clk
0:02:28.2]} 10. Bd3 {[%clk 0:02:58.9]} 10... Re8 {[%clk 0:02:26.9]} 11. e4
{[%clk 0:02:59.1]} 11... dxe4 {[%clk 0:02:24.3]} 12. Nxe4 {[%clk 0:03:00]} 12...
Nxe4 {[%clk 0:02:24.9]} 13. Bxe4 {[%clk 0:03:00.9]} 13... Nf6 {[%clk 0:02:25.6]}
14. Bc2 {[%clk 0:03:01]} 14... b5 {[%clk 0:02:22.5]} 15. Ne5 {[%clk 0:02:57.4]}
15... Qc7 {[%clk 0:02:19.4]} 16. Qf3 {[%clk 0:02:56.9]} 16... Bb7 {[%clk
0:02:17.9]} 17. Rac1 {[%clk 0:02:57.5]} 17... bxc4 {[%clk 0:02:09.7]} 18. bxc4
{[%clk 0:02:58.4]} 18... c5 {[%clk 0:02:10.2]} 19. Qe3 {[%clk 0:02:44.4]} 19...
Bxg2 {[%clk 0:01:56.5]} 20. Rfd1 {[%clk 0:02:01.3]} 20... Rab8 {[%clk 0:01:50]}
21. Bc3 {[%clk 0:01:48.4]} 21... cxd4 {[%clk 0:01:38]} 22. Bxd4 {[%clk
0:01:49.3]} 22... Ba8 {[%clk 0:01:37.4]} 23. Rd2 {[%clk 0:01:41.4]} 23... Nh5
{[%clk 0:01:33.7]} 24. Rcd1 {[%clk 0:01:33.3]} 24... f6 {[%clk 0:01:23.4]} 25.
Ng4 {[%clk 0:00:51.2]} 25... Qb7 {[%clk 0:01:21.2]} 26. f3 {[%clk 0:00:25.8]}
26... Qxf3 {[%clk 0:01:20.5]} 27. h3 {[%clk 0:00:25.8]} 27... e5 {[%clk
0:01:04.3]} 28. Ba7 {[%clk 0:00:22.7]} 28... Rbc8 {[%clk 0:01:00.9]} 29. Kh2
{[%clk 0:00:17.5]} 29... f5 {[%clk 0:00:52.6]} 30. Rf2 {[%clk 0:00:02.8]} 30...
Qb7 {[%clk 0:00:39.8]} 31. Nh6+ {[%clk 0:00:02.5]} 31... Bxh6 {[%clk 0:00:39]}
32. Qxh6 {[%clk 0:00:03.4]} 32... Qxa7 {[%clk 0:00:38.6]} 33. Rfd2 {[%clk
0:00:03.9]} 33... Qg7 {[%clk 0:00:38.3]} 34. Qg5 {[%clk 0:00:03.8]} 34... Nf6
{[%clk 0:00:36.9]} 35. Bxf5 {[%clk 0:00:02.4]} 35... gxf5 {[%clk 0:00:20.5]} 36.
Qxf5 {[%clk 0:00:03.3]} 36... Kh8 {[%clk 0:00:19.9]} 37. Rg1 {[%clk 0:00:03.6]}
37... Qf7 {[%clk 0:00:19.9]} 38. Rd6 {[%clk 0:00:03.1]} 38... Rf8 {[%clk
0:00:18.9]} 39. Qxe5 {[%clk 0:00:03.5]} 39... Rce8 {[%clk 0:00:19.4]} 40. Qb2
{[%clk 0:00:03.6]} 40... Qe7 {[%clk 0:00:18.6]} 41. c5 {[%clk 0:00:03.1]} 41...
Qe2+ {[%clk 0:00:18.3]} 42. Qxe2 {[%clk 0:00:03.7]} 42... Rxe2+ {[%clk
0:00:18.6]} 43. Kg3 {[%clk 0:00:04.6]} 43... Ne4+ {[%clk 0:00:18.7]} 44. Kh4
{[%clk 0:00:04.8]} 44... Nxd6 {[%clk 0:00:19]} 45. cxd6 {[%clk 0:00:05.7]} 45...
Re4+ {[%clk 0:00:19.5]} 46. Kh5 {[%clk 0:00:05.8]} 46... Re5+ {[%clk 0:00:19.8]}
47. Kh4 {[%clk 0:00:05.8]} 47... Rd8 {[%clk 0:00:20.1]} 48. Rc1 {[%clk
0:00:04.7]} 48... Re6 {[%clk 0:00:19.1]} 0-1

[Event "*** Titled Tuesday Blitz"]
[Site "Chess.com"]
[Date "2021.03.16"]
[Round "5"]
[White "Sanyura"]
[Black "ChristopherYoo"]
[Result "0-1"]
[WhiteElo "2637"]
[BlackElo "2903"]
[TimeControl "180+1"]
[EndTime "10:54:59 PDT"]
[Termination "ChristopherYoo won by resignation"]

1. e4 {[%clk 0:03:00.9]} 1... c5 {[%clk 0:02:58.5]} 2. Nf3 {[%clk 0:02:59.9]}
2... e6 {[%clk 0:02:58.7]} 3. d4 {[%clk 0:02:59.3]} 3... cxd4 {[%clk 0:02:59.6]}
4. Nxd4 {[%clk 0:03:00.1]} 4... Nf6 {[%clk 0:02:59.2]} 5. Nc3 {[%clk 0:03:00.4]}
5... Nc6 {[%clk 0:02:59.9]} 6. Ndb5 {[%clk 0:02:59.9]} 6... Bc5 {[%clk
0:02:58.7]} 7. Bf4 {[%clk 0:02:59.9]} 7... O-O {[%clk 0:02:58.2]} 8. Bc7 {[%clk
0:03:00.1]} 8... Qe7 {[%clk 0:02:58.5]} 9. Bd6 {[%clk 0:03:00.7]} 9... Bxd6
{[%clk 0:02:58.9]} 10. Qxd6 {[%clk 0:02:58.3]} 10... Qd8 {[%clk 0:02:59.1]} 11.
O-O-O {[%clk 0:02:57.6]} 11... a6 {[%clk 0:02:59]} 12. Nd4 {[%clk 0:02:57.9]}
12... Ne7 {[%clk 0:02:59.4]} 13. Qg3 {[%clk 0:02:54.3]} 13... Qa5 {[%clk
0:01:41.2]} 14. Bd3 {[%clk 0:02:40]} 14... e5 {[%clk 0:01:39.3]} 15. Nb3 {[%clk
0:02:39.2]} 15... Qc7 {[%clk 0:01:38.7]} 16. h4 {[%clk 0:02:37.5]} 16... d6
{[%clk 0:01:35.9]} 17. h5 {[%clk 0:02:35.6]} 17... h6 {[%clk 0:01:28.4]} 18. f3
{[%clk 0:02:24.8]} 18... Be6 {[%clk 0:01:27.8]} 19. Qh4 {[%clk 0:02:19.5]} 19...
b5 {[%clk 0:01:19.8]} 20. Rhg1 {[%clk 0:02:03.1]} 20... b4 {[%clk 0:01:17.3]}
21. Nd5 {[%clk 0:01:45.9]} 21... Nexd5 {[%clk 0:01:01.7]} 22. exd5 {[%clk
0:01:46.8]} 22... Nxd5 {[%clk 0:01:02.6]} 23. g4 {[%clk 0:01:27.7]} 23... f6
{[%clk 0:01:00.8]} 24. Be4 {[%clk 0:01:13.9]} 24... Ne3 {[%clk 0:00:50.9]} 25.
Rde1 {[%clk 0:01:05.5]} 25... d5 {[%clk 0:00:48.8]} 26. Rxe3 {[%clk 0:00:13.8]}
26... dxe4 {[%clk 0:00:47.3]} 27. fxe4 {[%clk 0:00:10.8]} 27... a5 {[%clk
0:00:45.8]} 28. Kb1 {[%clk 0:00:10.1]} 28... a4 {[%clk 0:00:39.5]} 29. Nc1
{[%clk 0:00:10.1]} 29... b3 {[%clk 0:00:24.5]} 30. Qf2 {[%clk 0:00:06.6]} 30...
Rfc8 {[%clk 0:00:18]} 31. Rc3 {[%clk 0:00:05.6]} 31... Qa5 {[%clk 0:00:13.1]}
32. Rxc8+ {[%clk 0:00:04.7]} 32... Rxc8 {[%clk 0:00:14]} 33. c3 {[%clk
0:00:03.6]} 33... bxa2+ {[%clk 0:00:12.4]} 34. Ka1 {[%clk 0:00:04]} 34... a3
{[%clk 0:00:11.8]} 35. g5 {[%clk 0:00:03.8]} 35... axb2+ {[%clk 0:00:10.8]} 36.
Qxb2 {[%clk 0:00:04.7]} 36... hxg5 {[%clk 0:00:10.9]} 37. h6 {[%clk 0:00:04.9]}
37... Qxc3 {[%clk 0:00:10.5]} 38. hxg7 {[%clk 0:00:04.4]} 38... Kxg7 {[%clk
0:00:10.2]} 39. Nxa2 {[%clk 0:00:03.6]} 39... Qxb2+ {[%clk 0:00:07.5]} 40. Kxb2
{[%clk 0:00:04.5]} 40... Bxa2 {[%clk 0:00:08]} 41. Kxa2 {[%clk 0:00:04.8]} 41...
Rc4 {[%clk 0:00:08.6]} 42. Re1 {[%clk 0:00:05.1]} 42... Kg6 {[%clk 0:00:09]} 43.
Kb3 {[%clk 0:00:05.7]} 43... Rd4 {[%clk 0:00:09.9]} 44. Kc3 {[%clk 0:00:06.3]}
44... g4 {[%clk 0:00:10.3]} 45. Kc2 {[%clk 0:00:05.7]} 45... Kg5 {[%clk
0:00:10.4]} 46. Kc3 {[%clk 0:00:06.3]} 46... g3 {[%clk 0:00:10.6]} 47. Ra1
{[%clk 0:00:03.9]} 47... Kg4 {[%clk 0:00:09.7]} 48. Ra8 {[%clk 0:00:04.4]} 48...
g2 {[%clk 0:00:09.9]} 49. Rg8+ {[%clk 0:00:04.5]} 49... Kf3 {[%clk 0:00:10.2]}
0-1

[Event "*** Titled Tuesday Blitz"]
[Site "Chess.com"]
[Date "2021.03.16"]
[Round "5"]
[White "PavelShkapenko"]
[Black "ViktoriyaTarasova"]
[Result "1-0"]
[WhiteElo "2692"]
[BlackElo "2348"]
[TimeControl "180+1"]
[EndTime "10:55:06 PDT"]
[Termination "PavelShkapenko won by checkmate"]

1. e4 {[%clk 0:03:00.9]} 1... e5 {[%clk 0:02:59.3]} 2. Nf3 {[%clk 0:03:00.6]}
2... Nc6 {[%clk 0:02:58.8]} 3. Bc4 {[%clk 0:03:01.2]} 3... Bc5 {[%clk
0:02:56.8]} 4. c3 {[%clk 0:03:01.5]} 4... Nf6 {[%clk 0:02:56.2]} 5. d4 {[%clk
0:03:02.4]} 5... exd4 {[%clk 0:02:53.3]} 6. b4 {[%clk 0:03:03]} 6... Bb6 {[%clk
0:02:49.4]} 7. e5 {[%clk 0:03:03.1]} 7... d5 {[%clk 0:02:43.3]} 8. exf6 {[%clk
0:03:02.7]} 8... dxc4 {[%clk 0:02:43.2]} 9. Qe2+ {[%clk 0:03:03.2]} 9... Be6
{[%clk 0:02:39.6]} 10. b5 {[%clk 0:03:03.5]} 10... d3 {[%clk 0:02:28]} 11. Qe4
{[%clk 0:03:02.9]} 11... Qxf6 {[%clk 0:01:21]} 12. bxc6 {[%clk 0:03:01.3]} 12...
O-O {[%clk 0:01:12.8]} 13. O-O {[%clk 0:02:59.5]} 13... bxc6 {[%clk 0:01:10.7]}
14. Bg5 {[%clk 0:02:55]} 14... Qg6 {[%clk 0:01:10]} 15. Qxg6 {[%clk 0:02:53.9]}
15... hxg6 {[%clk 0:01:09.6]} 16. Nbd2 {[%clk 0:02:54.4]} 16... Ba5 {[%clk
0:01:05]} 17. Rfc1 {[%clk 0:02:51.7]} 17... Rab8 {[%clk 0:01:05]} 18. Ne5 {[%clk
0:02:42.9]} 18... f6 {[%clk 0:00:58.9]} 19. Nexc4 {[%clk 0:02:42.7]} 19... Bxc3
{[%clk 0:00:52.2]} 20. Rxc3 {[%clk 0:02:41]} 20... fxg5 {[%clk 0:00:53.1]} 21.
Rxd3 {[%clk 0:02:29.1]} 21... Rfd8 {[%clk 0:00:52.4]} 22. Rxd8+ {[%clk
0:02:21.8]} 22... Rxd8 {[%clk 0:00:50.6]} 23. Rc1 {[%clk 0:02:18.3]} 23... Rd4
{[%clk 0:00:46.8]} 24. f3 {[%clk 0:02:14.5]} 24... g4 {[%clk 0:00:43.3]} 25. Kf2
{[%clk 0:02:14.3]} 25... gxf3 {[%clk 0:00:42.5]} 26. Kxf3 {[%clk 0:02:13.9]}
26... g5 {[%clk 0:00:32.1]} 27. Ke3 {[%clk 0:02:13.4]} 27... Rd8 {[%clk
0:00:27.2]} 28. a3 {[%clk 0:02:05.6]} 28... Bd5 {[%clk 0:00:27]} 29. g3 {[%clk
0:02:02.8]} 29... Re8+ {[%clk 0:00:27.6]} 30. Kd3 {[%clk 0:01:59.2]} 30... Bf7
{[%clk 0:00:25.5]} 31. Ne4 {[%clk 0:01:23.4]} 31... Bg6 {[%clk 0:00:24.7]} 32.
Nd2 {[%clk 0:01:23.5]} 32... Rd8+ {[%clk 0:00:23.8]} 33. Ke3 {[%clk 0:01:23.3]}
33... Be8 {[%clk 0:00:15]} 34. Nxg5 {[%clk 0:01:18.9]} 34... Rb8 {[%clk
0:00:15.6]} 35. Rc3 {[%clk 0:01:04.2]} 35... Bd7 {[%clk 0:00:15.3]} 36. Nge4
{[%clk 0:00:58.5]} 36... Rb2 {[%clk 0:00:13.6]} 37. Rb3 {[%clk 0:00:54.7]} 37...
Rc2 {[%clk 0:00:12.2]} 38. Ng5 {[%clk 0:00:54.2]} 38... Kf8 {[%clk 0:00:11.4]}
39. Nde4 {[%clk 0:00:47.7]} 39... Ke7 {[%clk 0:00:11.1]} 40. Rb7 {[%clk
0:00:44.8]} 40... Rxh2 {[%clk 0:00:08]} 41. Rxc7 {[%clk 0:00:42.8]} 41... a5
{[%clk 0:00:06.8]} 42. Ra7 {[%clk 0:00:42.8]} 42... Rc2 {[%clk 0:00:03.9]} 43.
Rxa5 {[%clk 0:00:41.8]} 43... Rc4 {[%clk 0:00:03.7]} 44. Re5+ {[%clk 0:00:33.2]}
44... Kd8 {[%clk 0:00:03.4]} 45. Rc5 {[%clk 0:00:33.8]} 45... Ra4 {[%clk
0:00:02.5]} 46. Rc3 {[%clk 0:00:33.7]} 46... Kc7 {[%clk 0:00:02.6]} 47. Nc5
{[%clk 0:00:33.6]} 47... Ra5 {[%clk 0:00:03.1]} 48. Nge4 {[%clk 0:00:29.8]}
48... Be8 {[%clk 0:00:02.4]} 49. Rb3 {[%clk 0:00:28.9]} 49... Ra8 {[%clk
0:00:01.6]} 50. Rb7+ {[%clk 0:00:28]} 50... Kc8 {[%clk 0:00:01.8]} 51. Rxg7
{[%clk 0:00:27.1]} 51... Rxa3+ {[%clk 0:00:01.9]} 52. Kf4 {[%clk 0:00:26.3]}
52... Ra1 {[%clk 0:00:02.1]} 53. Nd6+ {[%clk 0:00:25.6]} 53... Kd8 {[%clk
0:00:02.4]} 54. Ncb7# {[%clk 0:00:25.5]} 1-0

[Event "*** Titled Tuesday Blitz"]
[Site "Chess.com"]
[Date "2021.03.16"]
[Round "5"]
[White "ENajer77"]
[Black "iturrizaga"]
[Result "0-1"]
[WhiteElo "2620"]
[BlackElo "2843"]
[TimeControl "180+1"]
[EndTime "10:55:07 PDT"]
[Termination "iturrizaga won on time"]

1. e4 {[%clk 0:02:58.5]} 1... c5 {[%clk 0:02:58.7]} 2. Nf3 {[%clk 0:02:57.8]}
2... e6 {[%clk 0:02:59.1]} 3. d4 {[%clk 0:02:57.3]} 3... cxd4 {[%clk 0:03:00]}
4. Nxd4 {[%clk 0:02:58]} 4... a6 {[%clk 0:03:00.6]} 5. Nc3 {[%clk 0:02:56.7]}
5... Qc7 {[%clk 0:02:59.2]} 6. Bd3 {[%clk 0:02:56]} 6... Nf6 {[%clk 0:02:59]} 7.
O-O {[%clk 0:02:55.4]} 7... g6 {[%clk 0:02:59.1]} 8. Qe2 {[%clk 0:02:45.4]} 8...
d6 {[%clk 0:02:59.1]} 9. f4 {[%clk 0:02:44.6]} 9... Bg7 {[%clk 0:02:56.6]} 10.
f5 {[%clk 0:02:28.2]} 10... O-O {[%clk 0:02:55.5]} 11. fxe6 {[%clk 0:02:23.6]}
11... fxe6 {[%clk 0:02:55.3]} 12. Be3 {[%clk 0:02:17.1]} 12... Nc6 {[%clk
0:02:50.8]} 13. Nxc6 {[%clk 0:02:15.9]} 13... bxc6 {[%clk 0:02:51.7]} 14. e5
{[%clk 0:02:15.6]} 14... dxe5 {[%clk 0:02:48.2]} 15. Bc5 {[%clk 0:02:15.4]}
15... Rd8 {[%clk 0:02:41.4]} 16. Ne4 {[%clk 0:02:15.1]} 16... Nd5 {[%clk
0:02:41.6]} 17. g3 {[%clk 0:02:09.2]} 17... Rb8 {[%clk 0:02:34.5]} 18. b3 {[%clk
0:01:46.6]} 18... Qa5 {[%clk 0:02:05.7]} 19. a3 {[%clk 0:00:49.2]} 19... Qc7
{[%clk 0:01:03.4]} 20. Rf3 {[%clk 0:00:46.4]} 20... Ne7 {[%clk 0:00:59.6]} 21.
Raf1 {[%clk 0:00:25.6]} 21... Nf5 {[%clk 0:00:59.6]} 22. Qf2 {[%clk 0:00:26.1]}
22... h6 {[%clk 0:00:25.6]} 23. g4 {[%clk 0:00:25.9]} 23... Kh7 {[%clk
0:00:24.4]} 24. Kh1 {[%clk 0:00:24.7]} 24... a5 {[%clk 0:00:23.7]} 25. Rh3
{[%clk 0:00:24.5]} 25... Kg8 {[%clk 0:00:22.3]} 26. Rf3 {[%clk 0:00:17.3]} 26...
Rb5 {[%clk 0:00:20.9]} 27. b4 {[%clk 0:00:15.1]} 27... axb4 {[%clk 0:00:21.3]}
28. axb4 {[%clk 0:00:16]} 28... Rb8 {[%clk 0:00:21.8]} 29. gxf5 {[%clk 0:00:14]}
29... exf5 {[%clk 0:00:21.4]} 30. Rg3 {[%clk 0:00:13.6]} 30... Qf7 {[%clk
0:00:15.4]} 31. Qg2 {[%clk 0:00:12.3]} 31... g5 {[%clk 0:00:14.1]} 32. Nxg5
{[%clk 0:00:10.5]} 32... hxg5 {[%clk 0:00:14.1]} 33. Rxg5 {[%clk 0:00:11.1]}
33... Rxd3 {[%clk 0:00:11.9]} 34. cxd3 {[%clk 0:00:08.9]} 34... Be6 {[%clk
0:00:12.5]} 35. Qg3 {[%clk 0:00:06.3]} 35... f4 {[%clk 0:00:11.9]} 36. Qh4
{[%clk 0:00:04.6]} 36... Bd5+ {[%clk 0:00:10.3]} 37. Kg1 {[%clk 0:00:04.7]}
37... Rd8 {[%clk 0:00:10.9]} 38. Qg4 {[%clk 0:00:04.9]} 38... Be6 {[%clk
0:00:11.3]} 39. Qg2 {[%clk 0:00:04.2]} 39... Rxd3 {[%clk 0:00:11.3]} 40. Rxe5
{[%clk 0:00:03.3]} 40... f3 {[%clk 0:00:10]} 41. Qg5 {[%clk 0:00:01]} 41... Bd5
{[%clk 0:00:07]} 0-1